bitfinex/quotes_ETHUSD_20250815
["timestamp","ask_amount","ask_price","bid_price","bid_amount"]
[1755257552831,0.02,4635.9,4635.2,22.07272137]
[1755257553034,0.02,4635.9,4635.2,22.05114733]
[1755257553356,0.02,4635.9,4635.4,2.15731112]
[1755257553555,0.02,4635.9,4635.8,2.15712498]
[1755257553978,0.02,4635.9,4635.8,3.306]
[1755257554390,0.9432,4635.9,4635.8,5.46312498]
[1755257554594,0.9432,4635.9,4635.8,3.306]
[1755257554887,0.9432,4635.9,4635.8,3.305]
[1755257555255,0.9432,4635.9,4635.8,3.85122646]
[1755257555664,0.9432,4635.9,4635.8,6.00835144]
[1755257556293,0.9432,4635.9,4635.8,5.46212498]
[1755257556469,0.5072,4635.9,4635.8,5.46212498]
[1755257556664,0.9432,4635.9,4635.8,5.46212498]
[1755257559014,0.5072,4635.9,4635.8,5.46212498]
[1755257559717,0.9432,4635.9,4635.8,5.46212498]
[1755257560270,0.9432,4635.9,4635.8,6.22405865]
[1755257560905,0.9432,4635.9,4635.8,5.46212498]
[1755257561413,0.02,4635.9,4635.8,5.46212498]
[1755257562417,0.02,4635.9,4635.8,8.46212498]
[1755257562581,0.02,4635.9,4635.8,9.00342498]
[1755257562781,0.02,4635.9,4635.8,8.57012498]
[1755257563006,0.02,4635.9,4635.8,10.77458902]
[1755257563508,0.02,4635.9,4635.8,8.57012498]
[1755257563732,0.02,4636.9,4635.8,8.57012498]
[1755257564035,0.02,4638.9,4637.3,3.0]
[1755257564195,0.02,4638.9,4637.9,0.11268164]
[1755257564396,0.02,4638.9,4638.8,0.108]
[1755257564629,0.9432,4638.9,4638.8,5.59372993]
[1755257564830,0.9432,4638.9,4638.8,3.438]
[1755257565042,0.9432,4638.9,4638.5,3.33]
[1755257565208,0.9232,4638.8,4638.6,0.108]
[1755257565402,0.9232,4638.8,4638.6,2.26380487]
[1755257565604,0.9232,4638.7,4638.6,0.108]
[1755257566227,1.0312,4638.7,4638.2,3.331]
[1755257566429,0.9232,4638.6,4638.2,3.331]
[1755257566632,0.9232,4638.5,4637.9,0.22068164]
[1755257566934,0.9232,4638.4,4636.7,0.647723]
[1755257567135,2.26406157,4638.1,4637.4,0.108]
[1755257567292,2.26406157,4638.1,4636.1,0.02]
[1755257567293,2.15620203,4637.8,4636.1,0.02]
[1755257567627,0.108,4637.5,4636.3,2.15689234]
[1755257567832,2.15648183,4637.2,4636.6,0.108]
[1755257568032,0.9232,4637.1,4636.6,0.108]
[1755257568189,2.26437291,4637.5,4636.6,0.108]
[1755257568396,2.26437291,4637.5,4636.6,2.2647304]
[1755257568397,0.9232,4637.0,4636.6,2.2647304]
[1755257568751,0.436,4637.0,4636.9,2.15661325]
[1755257568954,0.436,4637.0,4636.9,5.48861325]
[1755257569125,0.9232,4637.0,4636.9,3.332]
[1755257569327,0.9232,4637.0,4636.9,3.89166613]
[1755257570171,0.9232,4637.0,4636.6,5.59571119]
[1755257570357,0.108,4637.5,4636.6,5.59571119]
[1755257570525,0.9232,4636.9,4636.7,2.15670495]
[1755257570724,0.9232,4636.8,4636.7,2.15670627]
[1755257571361,0.9232,4637.4,4636.7,0.02156706]
[1755257571540,0.436,4637.6,4636.8,0.34605671]
[1755257571855,0.497,4637.5,4637.2,0.108]
[1755257572059,0.959,4637.5,4637.3,3.331]
[1755257572256,0.108,4637.8,4637.4,2.15637159]
[1755257572457,0.462,4637.7,4637.3,3.331]
[1755257572627,0.959,4637.7,4637.4,2.15634384]
[1755257573160,0.959,4637.7,4637.6,2.15628773]
[1755257573369,0.57,4638.1,4637.6,5.48628773]
[1755257573663,0.959,4638.0,4637.6,5.48628773]
[1755257573826,0.959,4637.9,4637.6,5.48628773]
[1755257574026,0.497,4637.9,4637.6,5.48628773]
[1755257574228,0.462,4637.8,4637.6,5.48628773]
[1755257574426,2.15587447,4638.5,4637.6,5.48628773]
[1755257574427,0.57,4638.3,4637.8,2.15615593]
[1755257574660,0.57,4638.3,4637.9,3.33]
[1755257574866,0.959,4638.2,4637.9,3.33]
[1755257575164,0.959,4638.1,4637.9,3.33]
[1755257575362,0.959,4638.1,4637.9,5.4861328]
[1755257575836,0.959,4638.1,4637.9,3.33]
[1755257576038,0.959,4638.1,4637.9,5.48613793]
[1755257576225,0.959,4638.1,4638.0,2.15610176]
[1755257576426,0.022,4638.9,4638.0,0.79659436]
[1755257576656,0.022,4638.9,4638.6,2.15581599]
[1755257576862,0.022,4638.9,4638.7,3.33]
[1755257577027,0.462,4638.8,4638.7,3.33]
[1755257577234,0.959,4638.8,4638.7,3.33]
[1755257578565,0.959,4638.8,4638.6,3.329]
[1755257578784,0.959,4638.7,4638.3,3.328]
[1755257578961,0.959,4638.6,4638.3,3.328]
[1755257579156,2.15583052,4638.6,4638.3,3.328]
[1755257579482,3.11490039,4638.5,4638.3,3.328]
[1755257579686,0.959,4638.4,4638.3,3.328]
[1755257580353,0.959,4638.4,4638.1,0.108]
[1755257580555,0.959,4638.3,4638.1,0.108]
[1755257581085,0.959,4638.2,4638.1,0.108]
[1755257583840,0.959,4638.2,4637.0,0.001]
[1755257583984,2.15591963,4638.4,4637.0,0.001]
[1755257583985,2.15607127,4638.1,4637.7,0.108]
[1755257584184,3.22298705,4638.3,4637.7,0.108]
[1755257584626,2.15601415,4638.2,4637.7,0.108]
[1755257584826,2.15610865,4638.0,4637.7,0.108]
[1755257585210,0.959,4637.9,4637.7,0.108]
[1755257585616,2.1563226,4637.6,4637.2,3.325]
[1755257585920,3.11535041,4637.5,4637.2,0.108]
[1755257586242,2.15650243,4637.2,4637.0,0.001]
[1755257586528,2.15643966,4637.3,4637.0,0.001]
[1755257586753,2.26436779,4637.5,4637.0,0.001]
[1755257586754,0.959,4637.1,4637.0,0.001]
[1755257587022,3.11552023,4637.1,4637.0,0.001]
[1755257587198,3.11472023,4637.1,4637.0,0.001]
[1755257589118,0.9582,4637.1,4637.0,0.001]
[1755257591304,0.9574,4637.1,4637.0,0.001]
[1755257592223,0.9574,4637.1,4637.0,0.0018]
[1755257593943,0.108,4637.2,4637.0,0.0018]
[1755257594562,0.462,4637.8,4637.0,0.0018]
[1755257594722,0.108,4637.7,4637.0,0.58]
[1755257594925,0.108,4637.7,4637.2,2.15646168]
[1755257596127,0.108,4637.7,4637.1,2.15651638]
[1755257599866,0.108,4637.7,4637.0,2.73655316]
[1755257600868,0.108,4637.7,4637.0,0.1098]
[1755257601095,0.57,4637.7,4637.0,0.1098]
[1755257601270,2.15652023,4637.1,4637.0,0.0018]
[1755257601573,0.108,4637.1,4637.0,0.0018]
[1755257601772,1.067,4637.1,4637.0,0.0018]
[1755257602869,0.108,4637.1,4637.0,0.0018]
[1755257604260,0.108,4637.4,4637.0,0.0018]
[1755257606472,0.108,4637.7,4637.0,0.0018]
[1755257606871,0.108,4637.7,4637.1,2.15652023]
[1755257607470,0.108,4637.7,4637.0,2.1583566]
[1755257607773,5.92350933,4638.0,4637.2,2.15646556]
[1755257607946,6.03150933,4638.0,4637.4,0.108]
[1755257608140,2.15616753,4637.9,4637.4,0.108]
[1755257608463,3.8754,4638.0,4637.4,0.108]
[1755257608767,3.8754,4638.0,4637.5,0.02156334]
[1755257609086,3.8754,4638.0,4637.4,2.26436738]
[1755257609561,3.8754,4638.0,4637.5,2.15632622]
[1755257609889,3.8754,4638.0,4637.4,2.26437973]
[1755257610241,3.8754,4638.0,4637.5,2.17788933]
[1755257610581,3.425,4638.0,4637.5,2.17788933]
[1755257610744,0.108,4638.0,4637.5,0.46579806]
[1755257611091,0.002,4638.2,4637.6,0.108]
[1755257612665,0.002,4638.2,4637.6,0.1088]
[1755257613585,3.07537951,4638.1,4637.6,0.1088]
[1755257613771,2.15607951,4638.1,4637.6,0.1088]
[1755257613975,0.9193,4638.0,4637.6,0.1088]
[1755257614350,0.9193,4637.9,4637.6,0.1088]
[1755257615085,2.60841766,4638.2,4637.6,0.1088]
[1755257615984,0.108,4638.0,4637.6,0.0008]
[1755257616188,2.2641405,4638.0,4637.6,0.0008]
[1755257616400,0.9193,4637.9,4637.6,0.0008]
[1755257616772,0.108,4638.0,4637.6,0.0008]
[1755257616773,0.9193,4637.8,4637.6,0.0008]
[1755257621068,0.9193,4637.7,4637.6,0.0008]
[1755257621595,0.9193,4637.7,4637.3,0.1066]
[1755257621797,0.4689,4637.7,4637.3,0.1066]
[1755257621997,0.9193,4637.7,4637.3,0.1066]
[1755257623096,0.9193,4637.6,4637.3,0.1066]
[1755257623670,0.4504,4637.5,4637.3,0.1066]
[1755257624365,0.4689,4637.6,4637.3,0.1066]
[1755257626405,0.4504,4637.8,4637.3,0.1066]
[1755257626607,0.108,4638.0,4637.3,2.26300957]
[1755257626996,0.108,4638.0,4637.3,0.1066]
[1755257627307,0.4504,4637.9,4637.3,0.1066]
[1755257628019,0.4504,4637.9,4637.3,2.26302305]
[1755257628623,0.4504,4637.9,4637.4,2.15637937]
[1755257628805,0.4504,4637.9,4637.3,2.26301631]
[1755257630719,0.4504,4637.9,4637.3,0.1066]
[1755257631521,0.4504,4637.9,4637.3,2.26302566]
[1755257633288,0.4504,4637.9,4637.3,2.26382566]
[1755257633485,0.4496,4637.9,4637.3,0.1074]
[1755257634525,0.4496,4637.9,4637.3,2.26381584]
[1755257635019,0.11,4638.2,4637.6,0.108]
[1755257635185,0.11,4638.2,4637.7,2.15622566]
[1755257635584,0.11,4638.2,4637.7,2.62022566]
[1755257635842,0.11,4638.2,4637.7,0.464]
[1755257636118,0.11,4638.2,4637.7,2.62023811]
[1755257636304,0.11,4638.2,4637.7,0.81906108]
[1755257636507,0.002,4638.2,4638.1,2.15605528]
[1755257636713,0.0012,4638.2,4638.1,2.15605528]
[1755257637092,0.0012,4638.2,4638.1,3.03925528]
[1755257637324,0.0012,4638.2,4638.1,3.85019563]
[1755257637620,0.0012,4638.2,4638.1,3.87175618]
[1755257638323,0.0012,4638.2,4638.1,6.87175618]
[1755257638494,0.0012,4638.2,4638.1,6.85019563]
[1755257639187,0.0012,4638.2,4638.1,6.96103257]
[1755257639601,1e-08,4638.2,4638.1,6.85019563]
[1755257641718,1e-08,4638.2,4638.1,10.15619563]
[1755257641922,1e-08,4638.2,4638.1,9.73699563]
[1755257642612,1e-08,4638.2,4638.1,10.15619563]
[1755257642922,1e-08,4638.2,4638.1,5.96699563]
[1755257643126,1e-08,4638.2,4638.1,2.96699563]
[1755257643326,0.95000001,4638.2,4638.1,2.15605528]
[1755257643825,0.95000001,4638.2,4638.0,2.26410166]
[1755257644124,1e-08,4638.2,4638.1,2.15605528]
[1755257644532,1e-08,4638.2,4638.0,0.108]
[1755257644692,0.95,4638.1,4638.0,0.108]
[1755257645020,1e-08,4638.2,4638.0,0.108]
[1755257645189,0.95,4638.1,4638.0,0.108]
[1755257645390,0.95,4638.1,4637.8,3.306]
[1755257645587,0.95,4638.0,4637.8,3.414]
[1755257645790,1e-08,4638.2,4637.8,3.414]
[1755257646000,0.95,4637.9,4637.8,5.57019474]
[1755257646323,0.4968,4637.9,4637.8,5.57019474]
[1755257646631,0.95000001,4638.2,4637.8,3.414]
[1755257646793,0.95,4637.9,4637.6,0.0288]
[1755257647292,0.95,4637.8,4637.6,0.0288]
[1755257647822,0.95,4637.7,4637.6,0.0288]
[1755257648525,3.21424124,4637.7,4637.6,0.0288]
[1755257648945,1.058,4637.7,4637.6,0.0288]
[1755257649413,3.53566152,4637.7,4637.6,0.0288]
[1755257655111,6.84166152,4637.7,4637.6,0.0288]
[1755257659875,3.53566152,4637.7,4637.6,0.0288]
[1755257660173,6.84166152,4637.7,4637.6,0.0288]
[1755257661960,6.84166152,4637.7,4637.6,0.0296]
[1755257663246,4.68542028,4637.7,4637.6,0.0296]
[1755257663572,5.57024124,4637.7,4637.6,0.0296]
[1755257664483,6.50994124,4637.7,4637.6,0.0296]
[1755257665975,5.57024124,4637.7,4637.6,0.0296]
[1755257666437,3.414,4637.7,4637.6,0.0296]
[1755257666640,5.57024124,4637.7,4637.6,0.0296]
[1755257667444,6.50994124,4637.7,4637.6,0.0296]
[1755257667648,7.37655073,4637.7,4637.6,0.0296]
[1755257675798,7.37575073,4637.7,4637.6,0.0296]
[1755257676520,10.83925345,4637.7,4637.6,0.0296]
[1755257679098,17.87925345,4637.7,4637.6,0.0296]
[1755257679299,18.45748982,4637.7,4637.6,0.0296]
[1755257679501,17.87925345,4637.7,4637.6,0.0296]
[1755257680368,18.45748982,4637.7,4637.6,0.0296]
[1755257681105,18.45748982,4637.7,4637.6,0.0306]
[1755257682912,17.87925345,4637.7,4637.6,0.0306]
[1755257684793,18.45748982,4637.7,4637.6,0.0306]
[1755257685201,17.87925345,4637.7,4637.6,0.0306]
[1755257687845,17.41435345,4637.7,4637.6,0.0306]
[1755257687983,16.93955345,4637.7,4637.6,0.0306]
[1755257688189,16.07294396,4637.7,4637.6,0.5041]
[1755257688789,16.07294396,4637.7,4637.6,0.0306]
[1755257691997,9.03294396,4637.7,4637.6,0.0306]
[1755257693108,9.95494396,4637.7,4637.6,0.0306]
[1755257693322,11.22390963,4637.7,4637.6,0.0306]
[1755257693614,11.22310069,4637.7,4637.6,0.0306]
[1755257695101,10.30110069,4637.7,4637.6,0.0306]
[1755257697837,10.30310069,4637.7,4637.6,0.0306]
[1755257699234,9.03413502,4637.7,4637.6,0.0306]
[1755257700367,9.51983502,4637.7,4637.6,0.0306]
[1755257700938,9.95613502,4637.7,4637.6,0.0306]
[1755257702251,9.51983502,4637.7,4637.6,0.0306]
[1755257702452,9.03413502,4637.7,4637.6,0.0306]
[1755257702622,10.25463061,4637.7,4637.6,0.0306]
[1755257702815,6.87869378,4637.7,4637.6,0.0306]
[1755257703016,9.03493502,4637.7,4637.6,0.0306]
[1755257704362,9.00613502,4637.7,4637.6,0.0018]
[1755257704567,6.84989378,4637.7,4637.6,0.0018]
[1755257711571,6.84909378,4637.7,4637.6,0.0018]
[1755257714345,3.84909378,4637.7,4637.6,0.0018]
[1755257714678,3.413,4637.7,4637.6,0.8756]
[1755257715275,3.413,4637.7,4637.6,0.4564]
[1755257715641,3.413,4637.7,4637.6,0.0018]
[1755257717951,3.4122,4637.7,4637.6,0.0018]
[1755257718148,7.3342,4637.7,4637.6,0.0018]
[1755257718391,9.95359021,4637.7,4637.6,0.0018]
[1755257720342,7.79734897,4637.7,4637.6,0.0018]
[1755257720537,6.87425858,4637.7,4637.6,0.0018]
[1755257720941,9.03049982,4637.7,4637.6,0.0018]
[1755257721565,9.95249982,4637.7,4637.6,0.0018]
[1755257721873,11.22124718,4637.7,4637.6,0.0018]
[1755257724163,9.95249982,4637.7,4637.6,0.0018]
[1755257724852,6.87425858,4637.7,4637.6,0.0018]
[1755257725060,9.03049982,4637.7,4637.6,0.0018]
[1755257725254,6.87425858,4637.7,4637.6,0.0018]
[1755257725462,3.57225858,4637.7,4637.6,0.0018]
[1755257725670,6.4112,4637.7,4637.6,0.0018]
[1755257725866,6.87425858,4637.7,4637.6,0.0018]
[1755257726876,3.87425858,4637.7,4637.6,0.0018]
[1755257727076,3.4112,4637.7,4637.6,0.0018]
[1755257727970,4.3033,4637.7,4637.6,0.0018]
[1755257728302,6.92259982,4637.7,4637.6,0.0018]
[1755257728650,4.76635858,4637.7,4637.6,0.0018]
[1755257729153,3.87425858,4637.7,4637.6,0.0018]
[1755257730174,3.4112,4637.7,4637.6,0.0018]
[1755257733392,4.3033,4637.7,4637.6,0.0018]
[1755257733573,4.76635858,4637.7,4637.6,0.0018]
[1755257734589,6.92259982,4637.7,4637.6,0.0018]
[1755257734895,3.87425858,4637.7,4637.6,0.0018]
[1755257735096,3.8704,4637.7,4637.6,0.0018]
[1755257735398,4.33345858,4637.7,4637.6,0.0018]
[1755257735695,4.76635858,4637.7,4637.6,0.0018]
[1755257735894,6.92259982,4637.7,4637.6,0.0018]
[1755257736192,4.76635858,4637.7,4637.6,0.0018]
[1755257736718,4.3033,4637.7,4637.6,0.0018]
[1755257736862,3.8704,4637.7,4637.6,0.0018]
[1755257737364,4.3033,4637.7,4637.6,0.0018]
[1755257737560,4.77993586,4637.7,4637.6,0.0018]
[1755257737756,6.9361771,4637.7,4637.6,0.0018]
[1755257737970,4.76635858,4637.7,4637.6,0.0018]
[1755257738174,6.92259982,4637.7,4637.6,0.0018]
[1755257738615,4.76635858,4637.7,4637.6,0.0018]
[1755257738822,4.33345858,4637.7,4637.6,0.0018]
[1755257739478,3.87425858,4637.7,4637.6,0.0018]
[1755257741921,0.57225858,4637.7,4637.6,0.0018]
[1755257742211,3.4092,4637.7,4637.6,0.0018]
[1755257742633,6.02464124,4637.7,4637.6,0.0018]
[1755257742780,10.5693698,4637.7,4637.6,0.0018]
[1755257743122,11.14819303,4637.7,4637.6,0.0018]
[1755257743318,10.97129134,4637.7,4637.6,0.0018]
[1755257743620,11.74227317,4637.7,4637.6,0.0018]
[1755257744215,11.74229902,4637.7,4637.6,0.0018]
[1755257745094,11.30939902,4637.7,4637.6,0.0018]
[1755257745291,11.74215565,4637.7,4637.6,0.0018]
[1755257746088,10.5693698,4637.7,4637.6,0.0018]
[1755257748835,6.3772698,4637.7,4637.6,0.0018]
[1755257749002,9.02849982,4637.7,4637.6,0.0018]
[1755257750430,9.92059982,4637.7,4637.6,0.0018]
[1755257751302,10.12123998,4637.7,4637.6,0.0018]
[1755257751632,11.09311391,4637.7,4637.6,0.0018]
[1755257752335,10.32216729,4637.7,4637.6,0.0018]
[1755257752542,10.32216729,4637.7,4637.6,1e-08]
[1755257752840,10.52912988,4637.7,4637.6,1e-08]
[1755257753002,10.52912988,4637.7,4636.8,0.001]
[1755257753003,2.15642723,4637.3,4636.8,0.001]
[1755257753331,18.82783897,4636.9,4636.8,0.001]
[1755257753531,22.99146502,4636.9,4636.8,0.001]
[1755257754052,23.90326502,4636.9,4636.8,0.001]
[1755257754235,24.67357553,4636.9,4636.8,0.001]
[1755257755016,23.90326502,4636.9,4636.8,0.001]
[1755257755216,23.70233771,4636.9,4636.8,0.001]
[1755257755420,23.50153728,4636.9,4636.8,0.001]
[1755257755608,23.70203852,4636.9,4636.8,0.001]
[1755257756112,23.50153728,4636.9,4636.8,0.001]
[1755257757338,23.50153728,4636.9,4636.8,1e-08]
[1755257760218,23.70100034,4636.9,4636.8,1e-08]
[1755257760426,23.78742834,4636.9,4636.8,1e-08]
[1755257760625,22.87562834,4636.9,4636.8,1e-08]
[1755257760807,9.02651156,4636.9,4636.8,1e-08]
[1755257761036,9.60326174,4636.9,4636.8,1e-08]
[1755257761240,9.02651156,4636.9,4636.8,1e-08]
[1755257761410,10.20168976,4636.9,4636.8,1e-08]
[1755257761611,10.20168976,4636.9,4636.8,0.00080001]
[1755257761811,9.73879145,4636.9,4636.8,0.00080001]
[1755257762032,10.20015569,4636.9,4636.8,0.00080001]
[1755257766049,9.02417749,4636.9,4636.8,0.44680001]
[1755257766346,9.02417749,4636.9,4636.8,0.00080001]
[1755257768514,9.02417749,4636.9,4636.8,0.44680001]
[1755257768713,5.72517749,4636.9,4636.8,0.00080001]
[1755257768914,8.56281325,4636.9,4636.8,0.86600001]
[1755257769114,8.56281325,4636.9,4636.8,0.44680001]
[1755257769322,8.56281325,4636.9,4636.8,0.00080001]
[1755257769922,8.56281325,4636.9,4636.8,0.44680001]
[1755257770143,8.56281325,4636.9,4636.8,0.00080001]
[1755257772255,9.02508621,4636.9,4636.8,0.00080001]
[1755257777733,9.02508621,4636.9,4636.8,0.44680001]
[1755257778034,0.57027296,4636.9,4636.8,0.86600001]
[1755257778235,3.406,4636.9,4636.8,0.86600001]
[1755257781754,3.298,4636.9,4636.8,0.86600001]
[1755257782699,3.298,4636.9,4636.8,3.02265977]
[1755257782901,3.298,4636.9,4636.8,0.86600001]
[1755257783497,0.002,4637.4,4636.8,3.57317563]
[1755257783704,0.002,4637.4,4637.3,2.26442723]
[1755257783991,0.002,4637.4,4637.3,2.26522723]
[1755257784153,0.002,4637.4,4637.3,3.12752723]
[1755257784658,0.002,4637.4,4637.3,3.1490915]
[1755257784852,0.002,4637.4,4637.3,3.67965004]
[1755257785294,0.002,4637.4,4637.3,3.65808577]
[1755257787302,0.002,4637.4,4637.3,20.13487576]
[1755257787453,0.002,4637.4,4637.3,20.22131149]
[1755257790704,0.002,4637.4,4637.3,20.38074367]
[1755257792693,0.002,4637.4,4637.3,23.67674367]
[1755257793611,0.002,4637.4,4637.3,23.25754367]
[1755257793816,0.002,4637.4,4637.3,19.51844367]
[1755257793999,0.002,4637.4,4637.3,23.67674367]
[1755257802144,0.002,4637.4,4637.3,23.25754367]
[1755257802345,0.0012,4637.4,4637.3,23.25754367]
[1755257804725,0.0012,4637.4,4637.3,22.81444367]
[1755257806255,0.0012,4637.4,4637.3,23.67674367]
[1755257806455,0.002,4637.9,4637.8,2.15619474]
[1755257806656,1e-08,4637.9,4637.8,22.5534659]
[1755257806865,1e-08,4637.9,4637.8,23.4157659]
[1755257807247,1e-08,4637.9,4637.8,23.5021059]
[1755257807761,0.57870625,4641.0,4638.1,2.15605528]
[1755257807925,0.4724,4640.7,4639.8,18.82649103]
[1755257808125,0.4724,4640.7,4639.8,22.12049103]
[1755257808331,0.4724,4640.7,4639.8,22.56359103]
[1755257809155,0.4724,4641.2,4640.0,2.15517241]
[1755257809331,0.2495,4641.3,4640.0,8.47072413]
[1755257809537,0.2495,4641.3,4640.8,2.15480089]
[1755257809739,0.2495,4641.3,4640.8,5.55680089]
[1755257810934,0.2495,4641.3,4640.8,8.99990089]
[1755257811640,0.2495,4641.3,4640.8,8.55580089]
[1755257811847,0.9451,4640.9,4640.8,8.55580089]
[1755257812367,0.9451,4640.9,4640.8,3.108]
[1755257812566,0.9451,4640.9,4640.8,5.26280089]
[1755257812930,0.9451,4640.9,4640.8,2.26280089]
[1755257813131,0.9451,4640.9,4640.8,0.108]
[1755257813867,0.9451,4640.9,4640.8,3.4]
[1755257814633,0.9451,4640.9,4640.6,3.292]
[1755257814838,0.9321,4640.8,4640.6,3.292]
[1755257815170,0.9321,4640.7,4640.4,2.26298033]
[1755257815466,0.9321,4640.7,4640.5,3.292]
[1755257815467,0.4794,4640.6,4640.5,3.292]
[1755257815671,0.4794,4640.6,4640.4,2.26298033]
[1755257815974,0.02,4640.9,4640.5,3.292]
[1755257816136,0.02,4640.9,4640.8,2.15480089]
[1755257816336,0.02,4640.9,4640.8,5.44680089]
[1755257816759,0.02,4640.9,4640.8,5.55480089]
[1755257817266,0.02,4640.9,4640.8,3.4]
[1755257817570,0.4994,4640.9,4640.8,3.4]
[1755257818238,0.9521,4640.9,4640.8,0.108]
[1755257818649,0.02,4640.9,4640.8,0.108]
[1755257819582,0.4994,4640.9,4640.8,0.108]
[1755257820288,0.4994,4640.9,4640.8,3.4]
[1755257821371,0.02,4640.9,4640.8,5.55480089]
[1755257821575,0.0192,4640.9,4640.8,5.55480089]
[1755257821778,0.0192,4640.9,4640.8,6.32577004]
[1755257821942,0.0192,4640.9,4640.8,6.79427004]
[1755257822897,0.0192,4640.9,4640.8,9.68627004]
[1755257823186,0.0192,4640.9,4640.8,9.79427004]
[1755257825779,0.0192,4640.9,4640.8,10.21347004]
[1755257826288,0.0192,4640.9,4640.8,6.03377004]
[1755257826648,0.4986,4640.9,4640.8,9.32577004]
[1755257826848,0.0192,4640.9,4640.8,9.32657004]
[1755257827278,0.0192,4640.9,4640.8,9.79507004]
[1755257827647,0.0192,4640.9,4640.8,9.32657004]
[1755257828166,0.0192,4640.9,4640.8,9.79507004]
[1755257829674,0.0212,4640.9,4640.8,9.79507004]
[1755257833296,0.0212,4640.9,4640.8,10.21427004]
[1755257833297,1e-08,4640.9,4640.8,10.21427004]
[1755257834306,1e-08,4641.6,4641.5,2.15447592]
[1755257834454,1e-08,4641.6,4641.5,22.22514923]
[1755257834653,1e-08,4641.6,4641.5,22.33314923]
[1755257834854,1e-08,4641.6,4641.5,22.80164923]
[1755257835252,1e-08,4641.6,4641.5,9.23842351]
[1755257837493,1e-08,4641.6,4641.5,8.76992351]
[1755257837803,0.93210001,4641.6,4641.5,8.77092351]
[1755257838086,0.93210001,4641.6,4641.5,5.77092351]
[1755257838087,1e-08,4641.6,4641.5,5.77092351]
[1755257839470,1e-08,4641.6,4641.5,6.23942351]
[1755257841593,1e-08,4641.6,4641.5,9.23942351]
[1755257844665,0.01920001,4641.9,4641.8,2.15433667]
[1755257844864,0.01920001,4641.9,4641.8,9.8300553]
[1755257845070,0.01920001,4641.9,4641.8,9.9380553]
[1755257847010,0.01920001,4641.9,4641.8,9.9388553]
[1755257847977,0.49540001,4641.9,4641.8,6.6448553]
[1755257848174,0.93870001,4641.9,4641.8,9.9378553]
[1755257848388,0.49540001,4641.9,4641.8,9.9378553]
[1755257848613,0.01920001,4641.9,4641.8,9.9378553]
[1755257848815,0.49540001,4641.9,4641.8,9.9378553]
[1755257854360,0.93870001,4641.9,4641.8,5.26313667]
[1755257854498,0.93870001,4641.9,4641.8,0.1088]
[1755257854703,0.93870001,4641.9,4641.5,0.001]
[1755257854704,2.1544295,4641.6,4641.5,0.001]
[1755257855236,0.59516438,4641.9,4641.5,0.001]
[1755257855237,2.6181056,4641.7,4641.5,0.001]
[1755257855419,3.5530896,4641.6,4641.5,0.001]
[1755257857144,4.01680238,4641.6,4641.5,0.001]
[1755257858129,3.5530896,4641.6,4641.5,0.001]
[1755257858335,6.3709295,4641.6,4641.5,0.001]
[1755257859028,0.4762,4641.6,4641.5,0.001]
[1755257859435,0.9195,4641.6,4641.5,0.001]
[1755257861863,0.4762,4641.6,4641.5,0.001]
[1755257862366,0.01920001,4641.9,4641.5,0.001]
[1755257862573,0.01920001,4641.9,4641.8,2.15433667]
[1755257863330,0.02120001,4641.9,4641.8,2.15433667]
[1755257863875,0.02120001,4641.9,4641.8,2.63173329]
[1755257864033,0.02120001,4641.9,4641.8,3.09593329]
[1755257864700,0.02120001,4641.9,4641.8,3.20393329]
[1755257866068,0.02120001,4641.9,4641.8,2.73973329]
[1755257867509,0.02120001,4641.9,4641.8,3.20393329]
[1755257868560,0.02120001,4641.9,4641.8,2.73973329]
[1755257868767,0.02120001,4641.9,4641.8,0.108]
[1755257869006,0.02120001,4641.9,4641.8,2.26233667]
[1755257870830,0.02120001,4641.9,4641.8,2.28388003]
[1755257871599,0.02120001,4641.9,4641.8,2.26313667]
[1755257872332,0.02120001,4641.9,4641.8,2.72213667]
[1755257872494,0.02120001,4641.9,4641.8,3.83999251]
[1755257873331,0.02120001,4641.9,4641.8,3.38099251]
[1755257873509,0.50620001,4641.9,4641.8,2.26313667]
[1755257873826,0.02120001,4641.9,4641.8,2.26313667]
[1755257875339,0.97900001,4641.9,4641.8,0.1088]
[1755257876041,0.97900001,4641.9,4641.8,2.26313667]
[1755257876725,0.97900001,4641.9,4641.8,0.1088]
[1755257878037,0.97900001,4641.9,4641.8,0.0008]
[1755257878602,0.02120001,4641.9,4641.8,2.15513667]
[1755257878804,0.02120001,4641.9,4641.8,2.64289319]
[1755257879045,0.02120001,4641.9,4641.8,3.10189319]
[1755257879340,0.02120001,4641.9,4641.8,3.20989319]
[1755257880205,0.02120001,4641.9,4641.8,3.21089319]
[1755257881231,0.02120001,4641.9,4641.8,2.75189319]
[1755257881441,0.02120001,4641.9,4641.8,3.21089319]
[1755257882308,0.02120001,4641.9,4641.8,6.50989319]
[1755257883272,0.02120001,4641.9,4641.8,6.05089319]
[1755257883928,0.02120001,4641.9,4641.8,6.50989319]
[1755257884340,0.02120001,4641.9,4641.8,6.05089319]
[1755257886633,0.02120001,4641.9,4641.8,2.75189319]
[1755257886835,0.02040001,4641.9,4641.8,2.75189319]
[1755257887210,0.50540001,4641.9,4641.8,0.1098]
[1755257887410,0.97820001,4641.9,4641.8,0.1098]
[1755257888736,0.50540001,4641.9,4641.8,2.26413667]
[1755257889142,0.02040001,4641.9,4641.8,2.26413667]
[1755257889316,0.02040001,4641.9,4641.8,3.1650927]
[1755257889646,0.02040001,4641.9,4641.8,2.7060927]
[1755257890514,0.50540001,4641.9,4641.8,2.26413667]
[1755257890850,0.50540001,4641.9,4641.8,0.1098]
[1755257891051,0.97820001,4641.9,4641.8,0.1098]
[1755257893042,0.50540001,4641.9,4641.8,0.1098]
[1755257893352,0.50540001,4641.9,4641.8,2.26413667]
[1755257893953,0.02040001,4641.9,4641.8,2.26413667]